fUSD/lending_fUSD_20240518
["ID","MTS","AMOUNT","RATE_DAILY","PERIOD"]
[327344995,1715999459211,-150.0,0.00032899,2]
[327344996,1715999459220,-150.0,0.00032899,2]
[327344997,1715999459230,-150.0,0.00032899,2]
[327344998,1715999459240,-48.53448079,0.00043,7]
[327344999,1715999459252,-286.313,0.00043,7]
[327345000,1715999459263,-1065.15251921,0.00043,7]
[327345001,1715999459273,-506.90831086,0.00043835,30]
[327345002,1715999459282,-500.0,0.00043835,30]
[327345003,1715999459292,-519.36808383,0.00043835,30]
[327345004,1715999459302,-500.0,0.00043835,30]
[327345005,1715999459311,-544.67100758,0.00043835,30]
[327345006,1715999459320,-500.0,0.00043835,30]
[327345007,1715999459329,-152.0,0.00043835,10]
[327345008,1715999459338,-500.0,0.00043835,30]
[327345009,1715999459348,-506.56416578,0.00043835,30]
[327345010,1715999459357,-500.0,0.00044109,31]
[327345011,1715999459368,-500.0,0.00044109,31]
[327345012,1715999459378,-500.0,0.00044383,32]
[327345013,1715999459387,-500.0,0.00044657,33]
[327345014,1715999459396,-613.95587534,0.00044931,34]
[327345015,1715999459407,-426.01822598,0.00045205,35]
[327345016,1715999459417,-544.49244347,0.00045205,35]
[327345017,1715999459426,-500.0,0.00045205,35]
[327345018,1715999459436,-500.0,0.00045205,35]
[327345019,1715999459446,-500.0,0.00045205,35]
[327345020,1715999459456,-441.06576203,0.00045205,35]
[327345021,1715999459465,-500.0,0.00045205,35]
[327345022,1715999459474,-500.0,0.00045205,35]
[327345023,1715999459484,-500.0,0.00045205,35]
[327345024,1715999459493,-500.0,0.00045205,35]
[327345025,1715999459504,-500.0,0.00045205,21]
[327345026,1715999459513,-567.71231914,0.00045205,35]
[327345027,1715999459523,-500.0,0.00045205,35]
[327345028,1715999459532,-500.0,0.00045205,35]
[327345029,1715999459542,-1285.47,0.00045205,35]
[327345030,1715999459551,-309.94451707,0.00045205,35]
[327345031,1715999459561,-1173.52,0.00045205,35]
[327345032,1715999459571,-500.0,0.00045205,35]
[327345033,1715999459580,-500.0,0.00045205,35]
[327345034,1715999459590,-500.0,0.00045205,35]
[327345035,1715999459599,-210.36386874,0.00045205,35]
[327345036,1715999459609,-454.0944701,0.00045205,35]
[327345037,1715999459619,-525.91194004,0.00045205,35]
[327345038,1715999459629,-637.82,0.00045205,35]
[327345039,1715999459639,-500.0,0.00045205,35]
[327345040,1715999459648,-150.0,0.00045206,2]
[327345041,1715999459658,-712.26349083,0.00045213,2]
[327345042,1715999459670,-443.43736833,0.00045213,2]
[327345043,1715999459682,-344.29914084,0.00045213,2]
[327345044,1715999459692,-150.0,0.00045235,2]
[327345045,1715999459702,-150.0,0.00045236,2]
[327345046,1715999459711,-601.10085916,0.00045239,2]
[327345047,1715999459723,-898.89914084,0.00045239,2]
[327345048,1715999459733,-150.0,0.0004524,2]
[327345049,1715999459743,-150.0,0.0004524,2]
[327345050,1715999459752,-300.0,0.00045243,2]
[327345051,1715999459762,-150.0,0.00045245,2]
[327345052,1715999459771,-1500.0,0.00045247,2]
[327345053,1715999459781,-150.0,0.00045251,2]
[327345054,1715999459790,-150.0,0.00045257,2]
[327345055,1715999459800,-1500.0,0.00045266,2]
[327345056,1715999459810,-150.0,0.00045268,2]
[327345057,1715999459820,-150.0,0.00045273,2]
[327345058,1715999459829,-150.0,0.00045278,2]
[327345059,1715999459839,-150.0,0.00045278,2]
[327345060,1715999459848,-150.0,0.00045281,2]
[327345061,1715999459858,-150.0,0.00045283,2]
[327345062,1715999459867,-150.0,0.00045295,2]
[327345063,1715999459877,-300.0,0.00045297,2]
[327345064,1715999459886,-150.0,0.000453,2]
[327345065,1715999459895,-201.35508,0.0004531,120]
[327345066,1715999459905,-1066.61667587,0.00045313,2]
[327345067,1715999459917,-433.38332413,0.00045313,2]
[327345068,1715999459927,-1500.0,0.00045317,2]
[327345069,1715999459937,-215.0,0.0004532,30]
[327345070,1715999459947,-150.0,0.0004532,2]
[327345071,1715999459957,-341.72403629,0.00045323,2]
[327345072,1715999459969,-560.24011458,0.00045323,2]
[327345073,1715999459981,-598.03584913,0.00045323,2]
[327345074,1715999459991,-150.0,0.00045325,2]
[327345075,1715999460000,-150.0,0.00045328,2]
[327345076,1715999460010,-150.0,0.00045331,2]
[327345077,1715999460019,-150.0,0.00045334,2]
[327345078,1715999460030,-150.0,0.00045341,2]
[327345079,1715999460040,-150.0,0.00045343,2]
[327345080,1715999460049,-150.0,0.00045349,2]
[327345081,1715999460060,-1500.0,0.00045361,2]
[327345082,1715999460071,-1500.0,0.00045363,2]
[327345083,1715999460082,-150.0,0.00045372,2]
[327345084,1715999460091,-150.0,0.00045373,2]
[327345085,1715999460100,-150.0,0.00045373,2]
[327345086,1715999460110,-150.0,0.00045378,2]
[327345087,1715999460120,-150.0,0.0004538,2]
[327345088,1715999460130,-150.0,0.00045383,2]
[327345089,1715999460139,-300.0,0.0004539,2]
[327345090,1715999460149,-150.0,0.00045394,2]
[327345091,1715999460160,-150.0,0.00045402,2]
[327345092,1715999460175,-1500.0,0.00045406,2]
[327345093,1715999460187,-150.0,0.00045409,2]
[327345094,1715999460197,-150.0,0.00045414,2]
[327345095,1715999460207,-150.0,0.00045418,2]
[327345096,1715999460216,-1500.0,0.00045419,2]
[327345097,1715999460225,-1500.0,0.00045421,2]
[327345098,1715999460235,-150.0,0.00045432,2]
[327345099,1715999460245,-150.0,0.00045439,2]
[327345100,1715999460256,-1500.0,0.00045441,2]
[327345101,1715999460266,-150.0,0.00045445,2]
[327345102,1715999460277,-150.0,0.00045446,2]
[327345103,1715999460288,-167.051811,0.00045448,54]
[327345104,1715999460298,-150.0,0.00045453,2]
[327345105,1715999460307,-1500.0,0.00045453,2]
[327345106,1715999460317,-150.0,0.00045455,2]
[327345107,1715999460326,-300.0,0.00045455,2]
[327345108,1715999460337,-150.0,0.00045457,2]
[327345109,1715999460347,-1500.0,0.00045458,2]
[327345110,1715999460357,-150.0,0.00045462,2]
[327345111,1715999460367,-200.0,0.00045465,120]
[327345112,1715999460377,-1500.0,0.0004547,2]
[327345113,1715999460387,-150.0,0.00045473,2]
[327345114,1715999460397,-150.0,0.00045474,2]
[327345115,1715999460406,-150.0,0.00045476,2]
[327345116,1715999460416,-500.0,0.00045479,36]
[327345117,1715999460425,-626.85424701,0.00045479,36]
[327345118,1715999460436,-1250.46,0.00045479,36]
[327345119,1715999460445,-500.0,0.00045479,36]
[327345120,1715999460455,-500.0,0.00045479,36]
[327345121,1715999460465,-333.13901502,0.00045479,36]
[327345122,1715999460474,-430.07398749,0.00045479,36]
[327345123,1715999460484,-500.0,0.00045479,36]
[327345124,1715999460494,-389.52523679,0.00045479,36]
[327345125,1715999460504,-460.89924573,0.00045479,36]
[327345126,1715999460513,-500.0,0.00045479,36]
[327345127,1715999460523,-308.78740425,0.00045479,36]
[327345128,1715999460532,-500.0,0.00045479,36]
[327345129,1715999460542,-684.37,0.00045479,36]
[327345130,1715999460552,-322.18082009,0.00045479,36]
[327345131,1715999460562,-500.0,0.00045479,36]
[327345132,1715999460571,-500.0,0.00045479,36]
[327345133,1715999460581,-224.60707195,0.00045479,36]
[327345134,1715999460591,-500.0,0.00045479,36]
[327345135,1715999460600,-567.64420569,0.00045479,36]
[327345136,1715999460610,-541.7449574,0.00045479,36]
[327345137,1715999460620,-500.0,0.00045479,36]
[327345138,1715999460630,-632.92876831,0.00045479,36]
[327345139,1715999460639,-500.0,0.00045479,36]
[327345140,1715999460649,-1107.78,0.00045479,36]
[327345141,1715999460659,-500.0,0.00045479,36]
[327345142,1715999460669,-535.32080337,0.00045479,36]
[327345143,1715999460678,-480.70651841,0.00045479,36]
[327345144,1715999460689,-500.0,0.00045479,36]
[327345145,1715999460699,-500.0,0.00045479,36]
[327345146,1715999460708,-500.0,0.00045479,36]
[327345147,1715999460718,-500.0,0.00045479,36]
[327345148,1715999460727,-500.0,0.00045479,36]
[327345149,1715999460737,-500.0,0.00045479,36]
[327345150,1715999460747,-500.0,0.00045479,36]
[327345151,1715999460757,-500.0,0.00045479,21]
[327345152,1715999460766,-552.05687202,0.00045479,36]
[327345153,1715999460775,-450.72502471,0.00045479,36]
[327345154,1715999460784,-1285.47,0.00045479,36]
[327345155,1715999460794,-1173.52,0.00045479,36]
[327345156,1715999460803,-259.40755377,0.00045479,36]
[327345157,1715999460813,-500.0,0.00045479,36]
[327345158,1715999460822,-500.0,0.00045479,36]
[327345159,1715999460832,-637.82,0.00045479,36]
[327345160,1715999460841,-500.0,0.00045479,36]
[327345161,1715999460851,-1500.0,0.0004548,2]
[327345162,1715999460860,-150.0,0.00045485,2]
[327345163,1715999460870,-1500.0,0.00045486,2]
[327345164,1715999460880,-150.0,0.00045487,2]
[327345165,1715999460890,-150.0,0.00045488,2]
[327345166,1715999460899,-150.0,0.00045492,2]
[327345167,1715999460909,-160.0,0.000455,22]
[327345168,1715999460918,-160.0,0.000455,22]
[327345169,1715999460928,-151.0,0.000455,14]
[327345170,1715999460939,-151.0,0.000455,14]
[327345171,1715999460948,-151.0,0.000455,14]
[327345172,1715999460958,-151.0,0.000455,14]
[327345173,1715999460967,-163.019942,0.000455,12]
[327345174,1715999460976,-150.0,0.000455,12]
[327345175,1715999460986,-150.0,0.000455,12]
[327345176,1715999460996,-150.0,0.00045501,2]
[327345177,1715999461006,-150.0,0.00045502,2]
[327345178,1715999461016,-1450.49155329,0.0004551,2]
[327345179,1715999461025,-1508.35966,0.00045511,28]
[327345180,1715999461035,-150.0,0.00045515,2]
[327345181,1715999461045,-150.0,0.00045518,2]
[327345182,1715999461054,-1500.0,0.0004552,2]
[327345183,1715999461064,-150.0,0.00045522,2]
[327345184,1715999461074,-150.0,0.00045529,2]
[327345185,1715999461084,-300.0,0.00045533,2]
[327345186,1715999461093,-344.6361356,0.00045541,2]
[327345187,1715999461103,-150.0,0.00045544,2]
[327345188,1715999461112,-1500.0,0.00045544,2]
[327345189,1715999461122,-150.0,0.0004555,2]
[327345190,1715999461131,-1500.0,0.00045556,2]
[327345191,1715999461140,-150.0,0.00045564,2]
[327345192,1715999461149,-1500.0,0.00045568,2]
[327345193,1715999461159,-1500.0,0.00045568,2]
[327345194,1715999461173,-1500.0,0.0004557,2]
[327345195,1715999461184,-1500.0,0.00045571,2]
[327345196,1715999461192,-150.0,0.00045572,2]
[327345197,1715999461203,-1500.0,0.00045573,2]
[327345198,1715999461212,-150.0,0.00045577,2]
[327345199,1715999461222,-150.0,0.00045579,2]
[327345200,1715999461231,-279.1586375,0.0004558,2]
[327345201,1715999461242,-1500.0,0.00045584,2]
[327345202,1715999461253,-300.0,0.00045586,2]
[327345203,1715999461262,-300.0,0.00045587,2]
[327345204,1715999461272,-150.0,0.00045588,2]
[327345205,1715999461281,-1500.0,0.00045588,2]
[327345206,1715999461291,-150.0,0.0004559,2]
[327345207,1715999461301,-1500.0,0.00045593,2]
[327345208,1715999461311,-150.0,0.00045598,2]
[327345209,1715999461321,-150.0,0.000456,2]
[327345210,1715999461331,-1500.0,0.00045602,2]
[327345211,1715999461341,-150.0,0.00045605,2]
[327345212,1715999461351,-150.0,0.00045609,2]
[327345213,1715999461361,-150.0,0.00045615,2]
[327345214,1715999461371,-342.07258104,0.00045615,2]
[327345215,1715999461380,-1500.0,0.00045619,2]
[327345216,1715999461389,-150.0,0.00045621,2]
[327345217,1715999461398,-1000.0,0.00045625,120]
[327345218,1715999461408,-150.0,0.00045628,2]
[327345219,1715999461418,-1500.0,0.00045635,2]
[327345220,1715999461427,-150.0,0.00045639,2]
[327345221,1715999461439,-150.0,0.00045642,2]
[327345222,1715999461449,-151.0,0.00045642,14]
[327345223,1715999461458,-151.0,0.00045642,14]
[327345224,1715999461468,-150.0,0.00045644,2]
[327345225,1715999461477,-150.0,0.00045654,2]
[327345226,1715999461486,-1500.0,0.00045656,2]
[327345227,1715999461495,-150.0,0.00045657,2]
[327345228,1715999461598,-1500.0,0.00045658,2]
[327345229,1715999461608,-300.0,0.00045658,2]
[327345230,1715999461618,-150.0,0.00045663,2]
[327345231,1715999461627,-1500.0,0.0004567,2]
[327345232,1715999461637,-1500.0,0.00045675,2]
[327345233,1715999461647,-150.0,0.00045676,2]
[327345234,1715999461656,-1500.0,0.00045676,2]
[327345235,1715999461665,-150.0,0.00045676,2]
[327345236,1715999461674,-1500.0,0.00045681,2]
[327345237,1715999461684,-1500.0,0.00045682,2]
[327345238,1715999461693,-1500.0,0.00045683,2]
[327345239,1715999461702,-1500.0,0.00045689,2]
[327345240,1715999461712,-150.0,0.00045692,2]
[327345241,1715999461721,-1999.0,0.00045698,60]
[327345242,1715999461731,-1999.0,0.00045698,60]
[327345243,1715999461740,-1999.0,0.00045698,60]
[327345244,1715999461750,-1999.0,0.00045698,60]
[327345245,1715999461760,-1999.0,0.00045698,60]
[327345246,1715999461770,-1999.0,0.00045698,60]
[327345247,1715999461780,-1999.0,0.00045698,60]
[327345248,1715999461789,-1999.0,0.00045698,60]
[327345249,1715999461799,-1999.0,0.00045698,60]
[327345250,1715999461809,-1999.0,0.00045698,60]
[327345251,1715999461819,-1999.0,0.00045698,60]
[327345252,1715999461828,-1999.0,0.00045698,60]
[327345253,1715999461838,-1999.0,0.00045698,60]
[327345254,1715999461848,-1999.0,0.00045698,60]
[327345255,1715999461858,-1999.0,0.00045698,60]
[327345256,1715999461867,-1999.0,0.00045698,60]
[327345257,1715999461877,-1999.0,0.00045698,60]
[327345258,1715999461887,-1982.07689884,0.00045698,60]
[327345259,1715999461896,-588.06993633,0.00045753,37]
[327345260,1715999461905,-1250.46,0.00045753,37]
[327345261,1715999461915,-151.0,0.00045753,14]
[327345262,1715999461924,-151.0,0.00045753,14]
[327345263,1715999461934,-500.0,0.00045753,37]
[327345264,1715999461943,-151.0,0.00045753,14]
[327345265,1715999461952,-239.228169,0.00045753,14]
[327345266,1715999461962,-151.0,0.00045753,14]
[327345267,1715999461971,-151.0,0.00045753,14]
[327345268,1715999461981,-151.0,0.00045753,14]
[327345269,1715999461990,-500.0,0.00045753,37]
[327345270,1715999462000,-500.0,0.00045753,37]
[327345271,1715999462009,-500.0,0.00045753,37]
[327345272,1715999462018,-225.88460306,0.00045753,37]
[327345273,1715999462028,-684.37,0.00045753,37]
[327345274,1715999462037,-500.0,0.00045753,37]
[327345275,1715999462047,-532.82140122,0.00045753,37]
[327345276,1715999462057,-500.0,0.00045753,37]
[327345277,1715999462067,-500.0,0.00045753,37]
[327345278,1715999462077,-500.0,0.00045753,37]
[327345279,1715999462087,-1107.78,0.00045753,37]
[327345280,1715999462096,-500.0,0.00045753,37]
[327345281,1715999462106,-500.0,0.00045753,37]
[327345282,1715999462116,-500.0,0.00045753,37]
[327345283,1715999462126,-500.0,0.00045753,37]
[327345284,1715999462135,-500.0,0.00045753,37]
[327345285,1715999462145,-500.0,0.00045753,37]
[327345286,1715999462154,-500.0,0.00045753,37]
[327345287,1715999462166,-500.0,0.00045753,37]
[327345288,1715999462176,-208.41395372,0.00045753,21]
[327345289,1715999462187,-1285.47,0.00045753,37]
[327345290,1715999462197,-1173.52,0.00045753,37]
[327345291,1715999462206,-500.0,0.00045753,37]
[327345292,1715999462215,-500.0,0.00045753,37]
[327345293,1715999462224,-637.82,0.00045753,37]
[327345294,1715999462234,-500.0,0.00045753,37]
[327345295,1715999462243,-151.0,0.00045753,120]
[327345296,1715999462252,-802.1,0.00045781,2]
[327345297,1715999462262,-7185.1921158,0.00045796,2]
[327345298,1715999462271,-1501.2179226,0.00045796,2]
[327345299,1715999462282,-1573.2437101,0.00045796,2]
[327345300,1715999462291,-266.6639503,0.00045796,2]
[327345301,1715999462300,-205.3469887,0.00045796,2]
[327345302,1715999462309,-150.0,0.00045799,30]
[327345303,1715999462318,-150.0,0.00045799,30]
[327345304,1715999462327,-67564.05476256,0.000458,60]
[327345305,1715999462341,-778.21385103,0.000458,60]
[327345306,1715999462367,-150.0,0.00032899,2]
[327345307,1715999462376,-800.27790497,0.000458,60]
[327345308,1715999462388,-4081.61037205,0.000458,60]
[327345309,1715999462491,-155.16064316,0.00017259,2]
[327345310,1715999462501,-210.83223687,0.00027883,2]
[327345311,1715999462510,-26.68271403,0.00043,7]
[327345312,1715999462522,-1373.31728597,0.00043,7]
[327345313,1715999462531,-507.12066594,0.00043835,30]
[327345314,1715999462540,-500.0,0.00043835,30]
[327345315,1715999462550,-562.85333255,0.00043835,30]
[327345316,1715999462560,-522.9128197,0.00043835,30]
[327345317,1715999462570,-500.0,0.00043835,30]
[327345318,1715999462579,-533.56319442,0.00044109,31]
[327345319,1715999462589,-500.0,0.00044109,31]
[327345320,1715999462599,-523.10641528,0.00044109,31]
[327345321,1715999462608,-500.0,0.00044109,31]
[327345322,1715999462618,-820.0,0.00045184,7]
[327345323,1715999462627,-64802.95544248,0.000458,60]
[327345324,1715999462639,-75252.41542716,0.000458,60]
[327345325,1715999462648,-155.0,0.000458,7]
[327345326,1715999462657,-213.48352926,0.000458,15]
[327345327,1715999462667,-500.0,0.000458,15]
[327345328,1715999462676,-451.25839972,0.000458,4]
[327345329,1715999462686,-55829.24240858,0.000458,2]
[327345330,1715999463325,244.07480737,7.709e-05,2]
[327345337,1716000204141,24668.139076,0.0002,30]
[327345363,1716000631869,-155.0,0.00010034,2]
[327345365,1716000631879,-546.75884339,0.00010034,2]
[327345367,1716000631889,-513.17951357,0.00010035,2]
[327345369,1716000631901,-461.68774918,0.00010035,2]
[327345372,1716000631913,-270.12049756,0.00010035,2]
[327345375,1716000631922,-154.00800825,0.00010038,2]
[327345378,1716000631932,-155.32,0.00010455,2]
[327345380,1716000631942,-154.00800825,0.00011169,2]
[327345381,1716000631951,-150.0,0.00011179,2]
[327345382,1716000631961,-1332.58950747,0.0001118,2]
[327345384,1716000631973,-2291.30000015,0.0001118,2]
[327345386,1716000631984,-962.47257914,0.0001118,2]
[327345387,1716000631995,-364.18813852,0.0001118,2]
[327345388,1716000632007,-1087.10900317,0.0001118,2]
[327345389,1716000632082,-1943.32233783,0.0001118,2]
[327345390,1716000632092,-250.0,0.0001148,2]
[327345391,1716000632101,-6349.57765217,0.000116,2]
[327345392,1716000632113,-1483.11247329,0.000116,2]
[327345393,1716000632124,-1825.83409328,0.000116,2]
[327345394,1716000632136,-3002.23633276,0.000116,2]
[327345395,1716000632147,-6948.14198683,0.000116,2]
[327345396,1716000632157,-2365.07399036,0.000118,2]
[327345397,1716000632168,-664.03948097,0.000118,2]
[327345398,1716000634245,-486.46,0.00010959,2]
[327345399,1716000634254,-3638.43055274,0.000118,2]
[327345558,1716000637996,-2043.30475435,0.000118,2]
[327345560,1716000638006,-294.64,0.000118,2]
[327345562,1716000638015,-1345.34149249,0.00012,2]
[327345564,1716000638025,-499.99,0.00012,2]
[327345566,1716000638034,-3100.24281167,0.00012197,2]
[327345568,1716000638046,-1899.75718833,0.00012197,2]
[327345570,1716000638055,-3579.5069,0.00012198,2]
[327345572,1716000638064,-210.0,0.00012297,2]
[327345574,1716000638074,-2078.87431167,0.00012298,2]
[327345576,1716000638085,-2374.13588833,0.00012298,2]
[327345578,1716000638094,-164.0166,0.00012298,2]
[327345580,1716000638103,-4608.14131167,0.00012298,2]
[327345583,1716000638115,-18261.65070178,0.00012298,2]
[327345593,1716000640049,-672.57,0.00012298,2]
[327345594,1716000640061,-3772.84645282,0.00012298,2]
[327345595,1716000640085,-37011.10913373,0.00012298,2]
[327345596,1716000640095,-2384.8894,0.00012298,2]
[327345597,1716000640105,-2466.9606,0.00012298,2]
[327345598,1716000640114,-2500.0,0.00012298,2]
[327345599,1716000640124,-7500.0,0.00012298,2]
[327345600,1716000640133,-2290.73347026,0.000123,2]
[327345601,1716000640143,-156.59507089,0.000123,2]
[327345602,1716000640152,-154.00800825,0.000123,2]
[327345604,1716000640162,-171.11349026,0.00012388,2]
[327345605,1716000640171,-1239521.72849991,0.00012398,2]
[327345608,1716000640183,-7944.81792,0.00012398,2]
[327345610,1716000640194,-17307.53041,0.00012398,2]
[327345613,1716000640214,-113918.50103619,0.00012398,2]
[327345615,1716000640225,-358.33485164,0.00012398,2]
[327345617,1716000640237,-495.28604812,0.00012398,2]
[327345619,1716000640248,-389.72999925,0.00012398,2]
[327345621,1716000640260,-505.53116172,0.00012398,2]
[327345624,1716000640271,-966.24408338,0.00012398,2]
[327345626,1716000640283,-46950.5185435,0.00012398,2]
[327345628,1716000640294,-573.2828905,0.00012398,2]
[327345630,1716000640305,-603.45575644,0.00012398,2]
[327345632,1716000640316,-910.60655848,0.00012398,2]
[327345634,1716000640328,-7225.95188826,0.00012398,2]
[327345636,1716000640340,-631.33700009,0.00012398,2]
[327345639,1716000640352,-345.59999998,0.00012398,2]
[327345643,1716000640366,-652.20074213,0.00012398,2]
[327345647,1716000640382,-339.25813426,0.00012398,2]
[327345649,1716000640394,-959.199,0.00012398,2]
[327345651,1716000640405,-6690.98128096,0.00012398,2]
[327345653,1716000640417,-1163.68068873,0.00012398,2]
[327345655,1716000640429,-2129.5767494,0.00012398,2]
[327345657,1716000640441,-680.51216495,0.00012398,2]
[327345659,1716000640453,-688.15196471,0.00012398,2]
[327345670,1716000640553,-617.42097586,0.00012398,2]
[327345909,1716000643013,-582.270009,0.00012398,2]
[327345912,1716000643024,-7786.92172431,0.00012398,2]
[327345914,1716000643039,-3382.0,0.00012398,2]
[327345934,1716000643221,-149561.81203197,0.00012398,2]
[327345936,1716000643232,-4540.0,0.00012398,2]
[327345938,1716000643244,-1066.32182804,0.00012398,2]
[327345940,1716000643257,-362840.0711571,0.00012398,2]
[327345943,1716000643267,-63470.38583118,0.000124,2]
[327345945,1716000643276,-180.0,0.00012628,2]
[327345946,1716000643286,-206.02,0.00012671,2]
[327345948,1716000643296,-127034.09830626,0.0001268,2]
[327345950,1716000643305,-155.32,0.00012844,2]
[327345953,1716000643316,-1934.31499864,0.00012889,2]
[327345954,1716000643326,-5502.92443639,0.00012898,2]
[327345957,1716000643335,-457.62510194,0.00013,2]
[327345959,1716000643346,-362.48389235,0.00013,2]
[327345961,1716000643356,-200.0,0.00013699,2]
[327345962,1716000643366,-2751.0,0.00013699,2]
[327345964,1716000643376,-500.0,0.00013699,2]
[327345967,1716000643388,-250.0,0.00013699,2]
[327345968,1716000643397,-154.43,0.00013973,2]
[327345970,1716000643407,-152.35,0.00013973,2]
[327345973,1716000643417,-193.6,0.00014097,2]
[327345975,1716000643427,-155.5,0.00014475,2]
[327345976,1716000643437,-174.76,0.0001458,15]
[327345979,1716000643447,-618.72089771,0.00015,2]
[327345980,1716000643456,-4215.20892645,0.00015,2]
[327345983,1716000643467,-257.58397251,0.00015,2]
[327345985,1716000643477,-10803.0,0.00015,2]
[327345986,1716000643487,-300.0,0.00015068,2]
[327345988,1716000643496,-155.32,0.00015234,2]
[327345991,1716000643506,-206.02,0.0001541,2]
[327345993,1716000643516,-212.62271299,0.00015754,2]
[327345995,1716000643526,-2290.73347015,0.00015991,2]
[327345997,1716000643535,-300.0,0.00016438,2]
[327345999,1716000643549,-2782.19,0.00016438,2]
[327346001,1716000643559,-1226.74209097,0.000165,2]
[327346003,1716000643568,-5502.92443637,0.00016622,2]
[327346005,1716000643578,-1934.31499855,0.00016676,2]
[327346007,1716000643589,-155.0,0.00017,2]
[327346009,1716000643599,-193.6,0.00017622,2]
[327346011,1716000643608,-155.32,0.00017623,2]
[327346013,1716000643620,-156.59507087,0.00017833,2]
[327346015,1716000643629,-155.0,0.00018,2]
[327346017,1716000643639,-206.02,0.0001815,2]
[327346019,1716000643649,-4895.0,0.00018398,2]
[327346021,1716000643659,-23424.18038681,0.00019,5]
[327346023,1716000643668,-3879.18657409,0.000192,2]
[327346025,1716000643678,-1254.258682,0.00019451,2]
[327346027,1716000643690,-489.23716,0.00019451,2]
[327346030,1716000643701,-260.0074375,0.00019451,2]
[327346031,1716000643710,-472.11273273,0.000195,2]
[327346033,1716000643722,-4.25378752,0.000196,2]
[327346036,1716000643734,-696.62148026,0.000196,2]
[327346039,1716000643757,-372.59346765,0.000196,2]
[327346041,1716000643768,-2290.73347015,0.00019682,2]
[327346043,1716000643778,-155.0,0.0002,2]
[327346045,1716000643787,-293.88203282,0.0002,2]
[327346047,1716000643796,-155.0,0.0002,2]
[327346049,1716000643806,-5182.97271811,0.0002,2]
[327346051,1716000643815,-627.57712,0.0002,2]
[327346053,1716000643825,-1262.30364489,0.0002,2]
[327346055,1716000643834,-6236.08966478,0.0002,2]
[327346057,1716000643844,-876.35490689,0.0002,2]
[327346059,1716000643855,-896.09116029,0.0002,2]
[327346061,1716000643865,-861.79098037,0.0002,2]
[327346063,1716000643874,-155.0,0.0002,2]
[327346065,1716000643883,-409.64950278,0.0002,2]
[327346067,1716000643893,-1038.65205609,0.0002,2]
[327346069,1716000643902,-1043.0920579,0.0002,2]
[327346071,1716000643912,-37456.48019318,0.0002,2]
[327346073,1716000643922,-500.0,0.0002,2]
[327346075,1716000643932,-180.15034048,0.0002,2]
[327346077,1716000643941,-155.32,0.00020013,2]
[327346079,1716000643950,-5502.92443637,0.00020944,2]
[327346082,1716000643963,-717.49719888,0.00021,2]
[327346084,1716000643974,-1934.31499855,0.00021051,2]
[327346086,1716000643983,-193.6,0.00021146,2]
[327346088,1716000643993,-6767.13708574,0.000219,2]
[327346090,1716000644002,-208.8,0.00021918,2]
[327346092,1716000644012,-2000.0,0.00021918,2]
[327346094,1716000644021,-327.83,0.00021967,2]
[327346096,1716000644031,-5520.28770876,0.00022,2]
[327346098,1716000644040,-155.32,0.00022403,2]
[327346100,1716000644049,-155.0,0.00023,2]
[327346101,1716000644059,-554.0,0.00023182,2]
[327346103,1716000644068,-156.59507087,0.00023367,2]
[327346106,1716000644077,-167.0,0.00023368,2]
[327346108,1716000644087,-2290.73347015,0.00023373,2]